[Event "Titled Tuesday Blitz November 08 Early 2022"]
[White "Gholami Orimi, Mahdi"]
[Black "Paravyan, David"]
[WhiteFideId "12558486"]
[BlackFideId "4194985"]
[WhiteElo "2330"]
[BlackElo "2546"]
[Result "1/2-1/2"]
[Round "09"]
[TimeControl "180+1"]
[Date "2022.11.08"]
[WhiteClock "0:00:04"]
[BlackClock "0:00:03"]

1. d4 {[%clk 0:03:00]}  Nf6 {[%clk 0:02:59]} 2. g3 {[%clk 0:02:59]}  g6 {[%clk 0:02:58]} 3. Bg2 {[%clk 0:02:59]}  Bg7 {[%clk 0:02:57]} 4. e4 {[%clk 0:02:59]}  O-O {[%clk 0:02:57]} 5. c4 {[%clk 0:03:00]}  c5 {[%clk 0:02:55]} 6. d5 {[%clk 0:03:00]}  d6 {[%clk 0:02:55]} 7. Nc3 {[%clk 0:03:00]}  e6 {[%clk 0:02:54]} 8. Nge2 {[%clk 0:03:00]}  exd5 {[%clk 0:02:50]} 9. cxd5 {[%clk 0:03:00]}  Re8 {[%clk 0:02:42]} 10. a4 {[%clk 0:02:58]}  Na6 {[%clk 0:02:39]} 11. O-O {[%clk 0:02:54]}  Nb4 {[%clk 0:02:39]} 12. h3 {[%clk 0:02:46]}  Nd7 {[%clk 0:02:33]} 13. g4 {[%clk 0:02:44]}  Ne5 {[%clk 0:02:32]} 14. Bf4 {[%clk 0:02:20]}  Ned3 {[%clk 0:02:30]} 15. Bh2 {[%clk 0:02:12]}  Nxb2 {[%clk 0:02:29]} 16. Qb3 {[%clk 0:02:12]}  N2d3 {[%clk 0:02:30]} 17. Nb5 {[%clk 0:02:02]}  Be5 {[%clk 0:02:28]} 18. Rad1 {[%clk 0:01:51]}  Bxh2+ {[%clk 0:02:24]} 19. Kxh2 {[%clk 0:01:52]}  a6 {[%clk 0:02:24]} 20. Na3 {[%clk 0:01:53]}  Ne5 {[%clk 0:02:11]} 21. f4 {[%clk 0:01:36]}  Bxg4 {[%clk 0:02:08]} 22. hxg4 {[%clk 0:01:36]}  Nxg4+ {[%clk 0:02:09]} 23. Kg1 {[%clk 0:01:35]}  Qh4 {[%clk 0:02:07]} 24. Qg3 {[%clk 0:01:35]}  Qxg3 {[%clk 0:02:07]} 25. Nxg3 {[%clk 0:01:36]}  Ne3 {[%clk 0:02:08]} 26. Kf2 {[%clk 0:01:32]}  Nxf1 {[%clk 0:02:04]} 27. Bxf1 {[%clk 0:01:31]}  b5 {[%clk 0:01:57]} 28. axb5 {[%clk 0:01:29]}  axb5 {[%clk 0:01:57]} 29. Nxb5 {[%clk 0:01:30]}  Ra2+ {[%clk 0:01:57]} 30. Kf3 {[%clk 0:01:29]}  Rd8 {[%clk 0:01:53]} 31. Bc4 {[%clk 0:01:18]}  Rc2 {[%clk 0:01:52]} 32. Bb3 {[%clk 0:01:17]}  Rb2 {[%clk 0:01:52]} 33. Bc4 {[%clk 0:01:18]}  Rc2 {[%clk 0:01:48]} 34. Bb3 {[%clk 0:01:17]}  Rb2 {[%clk 0:01:48]} 35. Bc4 {[%clk 0:01:18]}  Nc2 {[%clk 0:01:42]} 36. Ne2 {[%clk 0:01:14]}  Rb4 {[%clk 0:01:33]} 37. Bd3 {[%clk 0:01:12]}  Rb3 {[%clk 0:01:31]} 38. Kf2 {[%clk 0:01:04]}  Na3 {[%clk 0:01:23]} 39. Nxa3 {[%clk 0:00:59]}  Rxa3 {[%clk 0:01:24]} 40. Bb5 {[%clk 0:00:59]}  Rb3 {[%clk 0:01:18]} 41. Bc6 {[%clk 0:00:59]}  h5 {[%clk 0:00:44]} 42. e5 {[%clk 0:00:53]}  dxe5 {[%clk 0:00:40]} 43. fxe5 {[%clk 0:00:54]}  g5 {[%clk 0:00:40]} 44. Rh1 {[%clk 0:00:47]}  h4 {[%clk 0:00:34]} 45. Rg1 {[%clk 0:00:47]}  c4 {[%clk 0:00:21]} 46. Rxg5+ {[%clk 0:00:47]}  Kf8 {[%clk 0:00:22]} 47. Rh5 {[%clk 0:00:44]}  Kg7 {[%clk 0:00:12]} 48. Rxh4 {[%clk 0:00:44]}  c3 {[%clk 0:00:12]} 49. Rg4+ {[%clk 0:00:41]}  Kh6 {[%clk 0:00:11]} 50. Rc4 {[%clk 0:00:42]}  Kg5 {[%clk 0:00:10]} 51. d6 {[%clk 0:00:31]}  Rb2 {[%clk 0:00:06]} 52. Kf3 {[%clk 0:00:19]}  c2 {[%clk 0:00:05]} 53. Nd4 {[%clk 0:00:19]}  Rc8 {[%clk 0:00:05]} 54. d7 {[%clk 0:00:18]}  Rd8 {[%clk 0:00:05]} 55. e6 {[%clk 0:00:19]}  Kf6 {[%clk 0:00:04]} 56. exf7 {[%clk 0:00:17]}  Kxf7 {[%clk 0:00:05]} 57. Nxc2 {[%clk 0:00:14]}  Ke7 {[%clk 0:00:05]} 58. Re4+ {[%clk 0:00:06]}  Kd6 {[%clk 0:00:06]} 59. Nd4 {[%clk 0:00:04]}  Rxd7 {[%clk 0:00:06]} 60. Bxd7 {[%clk 0:00:04]}  Kxd7 {[%clk 0:00:06]} 61. Kf4 {[%clk 0:00:04]}  Kd6 {[%clk 0:00:06]} 62. Nf5+ {[%clk 0:00:04]}  Kc5 {[%clk 0:00:07]} 63. Re1 {[%clk 0:00:04]}  Rh2 {[%clk 0:00:06]} 64. Ke5 {[%clk 0:00:04]}  Rh5 {[%clk 0:00:07]} 65. Rc1+ {[%clk 0:00:05]}  Kb5 {[%clk 0:00:07]} 66. Ke4 {[%clk 0:00:05]}  Kb6 {[%clk 0:00:08]} 67. Ke5 {[%clk 0:00:04]}  Kb5 {[%clk 0:00:08]} 68. Ke6 {[%clk 0:00:04]}  Kb4 {[%clk 0:00:08]} 69. Nd4 {[%clk 0:00:05]}  Rg5 {[%clk 0:00:06]} 70. Kd6 {[%clk 0:00:05]}  Rh5 {[%clk 0:00:06]} 71. Nc6+ {[%clk 0:00:05]}  Kb5 {[%clk 0:00:06]} 72. Ne5 {[%clk 0:00:06]}  Rh6+ {[%clk 0:00:03]} 73. Kd5 {[%clk 0:00:06]}  Rh5 {[%clk 0:00:04]} 74. Rb1+ {[%clk 0:00:07]}  Ka5 {[%clk 0:00:04]} 75. Kd6 {[%clk 0:00:07]}  Ka4 {[%clk 0:00:05]} 76. Nc4 {[%clk 0:00:06]}  Rb5 {[%clk 0:00:05]} 77. Rc1 {[%clk 0:00:04]}  Rh5 {[%clk 0:00:04]} 78. Ne3 {[%clk 0:00:03]}  Kb3 {[%clk 0:00:04]} 79. Nd5 {[%clk 0:00:03]}  Rh8 {[%clk 0:00:03]} 80. Ke5 {[%clk 0:00:03]}  Rh5+ {[%clk 0:00:03]} 81. Ke4 {[%clk 0:00:03]}  Rh4+ {[%clk 0:00:04]} 82. Nf4 {[%clk 0:00:04]}  Kb4 {[%clk 0:00:04]} 83. Rb1+ {[%clk 0:00:04]}  Ka4 {[%clk 0:00:04]} 84. Rc1 {[%clk 0:00:05]}  Kb4 {[%clk 0:00:05]} 85. Ke3 {[%clk 0:00:06]}  Kb5 {[%clk 0:00:05]} 86. Nd5 {[%clk 0:00:06]}  Rc4 {[%clk 0:00:05]} 87. Rb1+ {[%clk 0:00:04]}  Kc5 {[%clk 0:00:06]} 88. Nf4 {[%clk 0:00:05]}  Rc3+ {[%clk 0:00:06]} 89. Nd3+ {[%clk 0:00:05]}  Kd6 {[%clk 0:00:03]} 90. Kd4 {[%clk 0:00:05]}  Ra3 {[%clk 0:00:03]} 91. Rb6+ {[%clk 0:00:06]}  Kc7 {[%clk 0:00:04]} 92. Rh6 {[%clk 0:00:06]}  Ra1 {[%clk 0:00:04]} 93. Kc4 {[%clk 0:00:06]}  Rd1 {[%clk 0:00:04]} 94. Rh3 {[%clk 0:00:06]}  Kd6 {[%clk 0:00:04]} 95. Rh6+ {[%clk 0:00:06]}  Kc7 {[%clk 0:00:05]} 96. Nc5 {[%clk 0:00:06]}  Rc1+ {[%clk 0:00:04]} 97. Kd4 {[%clk 0:00:06]}  Rd1+ {[%clk 0:00:04]} 98. Ke5 {[%clk 0:00:07]}  Re1+ {[%clk 0:00:04]} 99. Ne4 {[%clk 0:00:08]}  Re2 {[%clk 0:00:04]} 100. Rh7+ {[%clk 0:00:08]}  Kc6 {[%clk 0:00:04]} 101. Rh6+ {[%clk 0:00:08]}  Kb5 {[%clk 0:00:05]} 102. Kd4 {[%clk 0:00:07]}  Re1 {[%clk 0:00:05]} 103. Nc3+ {[%clk 0:00:07]}  Ka5 {[%clk 0:00:04]} 104. Kc4 {[%clk 0:00:05]}  Re8 {[%clk 0:00:04]} 105. Rh5+ {[%clk 0:00:03]}  Kb6 {[%clk 0:00:04]} 106. Nd5+ {[%clk 0:00:04]}  Kb7 {[%clk 0:00:03]} 107. Rh7+ {[%clk 0:00:04]}  Kc6 {[%clk 0:00:02]} 108. Rh6+ {[%clk 0:00:04]}  Kb7 {[%clk 0:00:03]} 109. Kb5 {[%clk 0:00:03]}  Re1 {[%clk 0:00:03]} 110. Rh7+ {[%clk 0:00:04]}  Kb8 {[%clk 0:00:03]} 1/2-1/2


[Site "https://www.chess.com"]

[Event "Titled Tuesday Blitz November 08 Early 2022"]
[White "Gonzalez, Francisco Silva"]
[Black "Donskov, Anatoly"]
[WhiteFideId "1512285"]
[BlackFideId "24143413"]
[WhiteElo "2159"]
[BlackElo "2219"]
[Result "0-1"]
[Round "09"]
[TimeControl "180+1"]
[Date "2022.11.09"]
[WhiteClock "0:00:19"]
[BlackClock "0:00:05"]

1. d4 {[%clk 0:02:19]}  d5 {[%clk 0:02:57]} 2. c4 {[%clk 0:02:19]}  dxc4 {[%clk 0:02:57]} 3. e4 {[%clk 0:02:18]}  b5 {[%clk 0:02:57]} 4. a4 {[%clk 0:02:17]}  c6 {[%clk 0:02:55]} 5. axb5 {[%clk 0:02:18]}  cxb5 {[%clk 0:02:54]} 6. b3 {[%clk 0:02:17]}  e5 {[%clk 0:02:54]} 7. d5 {[%clk 0:02:13]}  Nf6 {[%clk 0:02:36]} 8. Qf3 {[%clk 0:01:56]}  Nc6 {[%clk 0:02:26]} 9. bxc4 {[%clk 0:01:54]}  Nd4 {[%clk 0:02:22]} 10. Qd3 {[%clk 0:01:44]}  Bb4+ {[%clk 0:02:11]} 11. Bd2 {[%clk 0:01:44]}  Bxd2+ {[%clk 0:02:08]} 12. Nxd2 {[%clk 0:01:43]}  bxc4 {[%clk 0:02:05]} 13. Qxc4 {[%clk 0:01:41]}  O-O {[%clk 0:02:04]} 14. Ngf3 {[%clk 0:01:39]}  Nxf3+ {[%clk 0:01:42]} 15. Nxf3 {[%clk 0:01:37]}  Qd6 {[%clk 0:01:43]} 16. Be2 {[%clk 0:01:31]}  a5 {[%clk 0:01:39]} 17. O-O {[%clk 0:01:26]}  Ba6 {[%clk 0:01:39]} 18. Qc2 {[%clk 0:01:24]}  Rfc8 {[%clk 0:01:39]} 19. Qd1 {[%clk 0:01:19]}  Nxe4 {[%clk 0:01:36]} 20. Bxa6 {[%clk 0:01:18]}  Rxa6 {[%clk 0:01:36]} 21. Qe2 {[%clk 0:01:16]}  f5 {[%clk 0:01:05]} 22. Nxe5 {[%clk 0:01:15]}  Rca8 {[%clk 0:01:05]} 23. Nc6 {[%clk 0:01:13]}  Kh8 {[%clk 0:00:50]} 24. Qc4 {[%clk 0:01:09]}  Nd2 {[%clk 0:00:47]} 25. Qd4 {[%clk 0:01:09]}  Nxf1 {[%clk 0:00:46]} 26. Ne5 {[%clk 0:00:57]}  Kg8 {[%clk 0:00:28]} 27. Rxf1 {[%clk 0:00:55]}  a4 {[%clk 0:00:28]} 28. Nc4 {[%clk 0:00:54]}  Qf6 {[%clk 0:00:20]} 29. Qc5 {[%clk 0:00:54]}  a3 {[%clk 0:00:19]} 30. d6 {[%clk 0:00:54]}  a2 {[%clk 0:00:19]} 31. d7 {[%clk 0:00:53]}  a1=Q {[%clk 0:00:17]} 32. Qc8+ {[%clk 0:00:53]}  Qd8 {[%clk 0:00:16]} 33. Qb7 {[%clk 0:00:50]}  Qxf1+ {[%clk 0:00:15]} 34. Kxf1 {[%clk 0:00:50]}  Ra1+ {[%clk 0:00:15]} 35. Ke2 {[%clk 0:00:50]}  Qe7+ {[%clk 0:00:14]} 36. Ne3 {[%clk 0:00:50]}  Qd6 {[%clk 0:00:11]} 37. Qb3+ {[%clk 0:00:50]}  Kh8 {[%clk 0:00:10]} 38. Nxf5 {[%clk 0:00:51]}  Qxd7 {[%clk 0:00:09]} 39. Ne3 {[%clk 0:00:50]}  Rd8 {[%clk 0:00:08]} 40. Qb2 {[%clk 0:00:46]}  Ra5 {[%clk 0:00:07]} 41. g4 {[%clk 0:00:45]}  Qe7 {[%clk 0:00:06]} 42. Kf3 {[%clk 0:00:44]}  Re5 {[%clk 0:00:06]} 43. Qc3 {[%clk 0:00:40]}  Qf6+ {[%clk 0:00:06]} 44. Kg2 {[%clk 0:00:38]}  Rxe3 {[%clk 0:00:06]} 45. Qxe3 {[%clk 0:00:38]}  Rf8 {[%clk 0:00:05]} 46. h3 {[%clk 0:00:37]}  h6 {[%clk 0:00:06]} 47. Kg3 {[%clk 0:00:32]}  Qg5 {[%clk 0:00:06]} 48. f4 {[%clk 0:00:32]}  Qf6 {[%clk 0:00:06]} 49. f5 {[%clk 0:00:31]}  Rc8 {[%clk 0:00:05]} 50. Kg2 {[%clk 0:00:23]}  Rc3 {[%clk 0:00:05]} 51. Qe8+ {[%clk 0:00:22]}  Kh7 {[%clk 0:00:06]} 52. Qe4 {[%clk 0:00:22]}  Ra3 {[%clk 0:00:04]} 53. h4 {[%clk 0:00:20]}  Qb2+ {[%clk 0:00:04]} 54. Kh1 {[%clk 0:00:19]}  Ra1+ {[%clk 0:00:05]} 55. Qe1 {[%clk 0:00:19]}  Rxe1# {[%clk 0:00:05]} 0-1


[Site "https://www.chess.com"]

[Event "Titled Tuesday Blitz November 08 Early 2022"]
[White "Gonzalez Vega, Alejandro"]
[Black "Seletsky, Grigory"]
[WhiteFideId "3510042"]
[BlackFideId "14112191"]
[WhiteElo "2290"]
[BlackElo "2492"]
[Result "1/2-1/2"]
[Round "09"]
[TimeControl "180+1"]
[Date "2022.11.09"]
[WhiteClock "0:00:18"]
[BlackClock "0:00:11"]

1. e4 {[%clk 0:02:56]}  e6 {[%clk 0:03:00]} 2. Nf3 {[%clk 0:02:55]}  d5 {[%clk 0:03:00]} 3. e5 {[%clk 0:02:55]}  c5 {[%clk 0:02:59]} 4. b4 {[%clk 0:02:55]}  b6 {[%clk 0:02:55]} 5. a3 {[%clk 0:02:52]}  Qd7 {[%clk 0:02:54]} 6. c3 {[%clk 0:02:51]}  Ba6 {[%clk 0:02:53]} 7. Bxa6 {[%clk 0:02:39]}  Nxa6 {[%clk 0:02:53]} 8. d4 {[%clk 0:02:38]}  cxd4 {[%clk 0:02:51]} 9. cxd4 {[%clk 0:02:38]}  Ne7 {[%clk 0:02:47]} 10. O-O {[%clk 0:02:37]}  Rc8 {[%clk 0:02:44]} 11. Nbd2 {[%clk 0:02:35]}  Nf5 {[%clk 0:02:36]} 12. Bb2 {[%clk 0:02:34]}  Be7 {[%clk 0:02:30]} 13. Qb3 {[%clk 0:02:29]}  O-O {[%clk 0:02:19]} 14. Rac1 {[%clk 0:02:26]}  b5 {[%clk 0:02:12]} 15. Qd3 {[%clk 0:02:06]}  Nb8 {[%clk 0:01:52]} 16. Qb1 {[%clk 0:01:49]}  Rxc1 {[%clk 0:01:43]} 17. Rxc1 {[%clk 0:01:49]}  Rc8 {[%clk 0:01:43]} 18. Rxc8+ {[%clk 0:01:40]}  Qxc8 {[%clk 0:01:43]} 19. g4 {[%clk 0:01:27]}  Nh4 {[%clk 0:01:39]} 20. Nxh4 {[%clk 0:01:27]}  Bxh4 {[%clk 0:01:39]} 21. Qd3 {[%clk 0:01:10]}  a6 {[%clk 0:01:32]} 22. Qc3 {[%clk 0:00:47]}  Qxc3 {[%clk 0:01:28]} 23. Bxc3 {[%clk 0:00:48]}  Nc6 {[%clk 0:01:23]} 24. Nb3 {[%clk 0:00:47]}  Bd8 {[%clk 0:01:11]} 25. Nc5 {[%clk 0:00:42]}  a5 {[%clk 0:01:09]} 26. f4 {[%clk 0:00:36]}  axb4 {[%clk 0:01:05]} 27. axb4 {[%clk 0:00:36]}  Bb6 {[%clk 0:01:04]} 28. Kf2 {[%clk 0:00:34]}  Bxc5 {[%clk 0:00:58]} 29. bxc5 {[%clk 0:00:31]}  f6 {[%clk 0:00:49]} 30. Ke3 {[%clk 0:00:28]}  Kf7 {[%clk 0:00:42]} 31. h4 {[%clk 0:00:22]}  f5 {[%clk 0:00:20]} 32. gxf5 {[%clk 0:00:19]}  exf5 {[%clk 0:00:18]} 33. h5 {[%clk 0:00:19]}  h6 {[%clk 0:00:11]} 34. Kf3 {[%clk 0:00:17]}  Ke6 {[%clk 0:00:11]} 35. Ke3 {[%clk 0:00:18]}  Kf7 {[%clk 0:00:11]} 36. Kf3 {[%clk 0:00:18]}  Ke6 {[%clk 0:00:11]} 37. Ke3 {[%clk 0:00:18]}  Kf7 {[%clk 0:00:11]} 1/2-1/2


[Site "https://www.chess.com"]

[Event "Titled Tuesday Blitz November 08 Early 2022"]
[White "Hajiyev, Kanan"]
[Black "Farmani Anosheh, Armin"]
[WhiteFideId "13404148"]
[BlackFideId "24613240"]
[WhiteElo "2118"]
[BlackElo "2289"]
[Result "0-1"]
[Round "09"]
[TimeControl "180+1"]
[Date "2022.11.09"]
[WhiteClock "0:00:11"]
[BlackClock "0:00:17"]

1. d4 {[%clk 0:02:21]}  Nf6 {[%clk 0:02:59]} 2. Nf3 {[%clk 0:02:22]}  e6 {[%clk 0:02:55]} 3. c4 {[%clk 0:02:23]}  Bb4+ {[%clk 0:02:55]} 4. Bd2 {[%clk 0:02:22]}  c5 {[%clk 0:02:54]} 5. a3 {[%clk 0:02:19]}  Bxd2+ {[%clk 0:02:52]} 6. Qxd2 {[%clk 0:02:20]}  cxd4 {[%clk 0:02:42]} 7. Nxd4 {[%clk 0:02:21]}  O-O {[%clk 0:02:41]} 8. Nc3 {[%clk 0:02:20]}  d5 {[%clk 0:02:09]} 9. e3 {[%clk 0:02:14]}  Nc6 {[%clk 0:02:04]} 10. cxd5 {[%clk 0:02:11]}  Nxd5 {[%clk 0:01:57]} 11. Nxc6 {[%clk 0:02:11]}  bxc6 {[%clk 0:01:57]} 12. Be2 {[%clk 0:02:07]}  Rb8 {[%clk 0:01:26]} 13. O-O {[%clk 0:02:05]}  a5 {[%clk 0:01:05]} 14. Rfd1 {[%clk 0:02:02]}  Qb6 {[%clk 0:01:00]} 15. Rab1 {[%clk 0:01:21]}  h6 {[%clk 0:00:20]} 16. e4 {[%clk 0:01:09]}  Nf6 {[%clk 0:00:20]} 17. Bf3 {[%clk 0:01:03]}  e5 {[%clk 0:00:20]} 18. Qc2 {[%clk 0:00:56]}  Be6 {[%clk 0:00:20]} 19. Rdc1 {[%clk 0:00:52]}  Bb3 {[%clk 0:00:19]} 20. Qd2 {[%clk 0:00:53]}  Rfd8 {[%clk 0:00:20]} 21. Qe2 {[%clk 0:00:53]}  Rd4 {[%clk 0:00:20]} 22. h3 {[%clk 0:00:52]}  Rbd8 {[%clk 0:00:20]} 23. Qe3 {[%clk 0:00:47]}  c5 {[%clk 0:00:20]} 24. Ne2 {[%clk 0:00:31]}  Rd3 {[%clk 0:00:18]} 25. Qxc5 {[%clk 0:00:31]}  Rd1+ {[%clk 0:00:19]} 26. Kh2 {[%clk 0:00:23]}  Qxc5 {[%clk 0:00:18]} 27. Rxc5 {[%clk 0:00:22]}  Rxb1 {[%clk 0:00:19]} 28. Rxe5 {[%clk 0:00:20]}  Rxb2 {[%clk 0:00:18]} 29. Rxa5 {[%clk 0:00:21]}  Nxe4 {[%clk 0:00:15]} 30. Rb5 {[%clk 0:00:13]}  Nd2 {[%clk 0:00:15]} 31. Bc6 {[%clk 0:00:09]}  Rb1 {[%clk 0:00:12]} 32. g4 {[%clk 0:00:07]}  Bc4 {[%clk 0:00:12]} 33. Rxb1 {[%clk 0:00:06]}  Nxb1 {[%clk 0:00:12]} 34. Ng3 {[%clk 0:00:05]}  Rd2 {[%clk 0:00:12]} 35. Kg1 {[%clk 0:00:05]}  Nxa3 {[%clk 0:00:12]} 36. Bf3 {[%clk 0:00:04]}  Bd5 {[%clk 0:00:12]} 37. Bxd5 {[%clk 0:00:03]}  Rxd5 {[%clk 0:00:13]} 38. Kg2 {[%clk 0:00:03]}  Nc4 {[%clk 0:00:13]} 39. h4 {[%clk 0:00:04]}  Nd6 {[%clk 0:00:13]} 40. h5 {[%clk 0:00:05]}  g6 {[%clk 0:00:14]} 41. Kf3 {[%clk 0:00:06]}  Kg7 {[%clk 0:00:14]} 42. hxg6 {[%clk 0:00:06]}  fxg6 {[%clk 0:00:15]} 43. Kf4 {[%clk 0:00:07]}  h5 {[%clk 0:00:14]} 44. Kf3 {[%clk 0:00:08]}  hxg4+ {[%clk 0:00:15]} 45. Kxg4 {[%clk 0:00:09]}  Rd4+ {[%clk 0:00:15]} 46. Kh3 {[%clk 0:00:08]}  Ra4 {[%clk 0:00:16]} 47. Kg2 {[%clk 0:00:09]}  Nf5 {[%clk 0:00:16]} 48. Kf3 {[%clk 0:00:10]}  Nxg3 {[%clk 0:00:16]} 49. Kxg3 {[%clk 0:00:11]}  Kf6 {[%clk 0:00:17]} 0-1


[Site "https://www.chess.com"]

[Event "Titled Tuesday Blitz November 08 Early 2022"]
[White "Harshavardhan G B"]
[Black "Shimanov, Aleksandr"]
[WhiteFideId "25059009"]
[BlackFideId "4198603"]
[WhiteElo "2333"]
[BlackElo "2605"]
[Result "1-0"]
[Round "09"]
[TimeControl "180+1"]
[Date "2022.11.08"]
[WhiteClock "0:00:08"]
[BlackClock "0:00:09"]

1. Nf3 {[%clk 0:02:42]}  d5 {[%clk 0:02:58]} 2. d4 {[%clk 0:02:42]}  Nf6 {[%clk 0:02:55]} 3. c4 {[%clk 0:02:41]}  e6 {[%clk 0:02:55]} 4. Nc3 {[%clk 0:02:41]}  h6 {[%clk 0:02:44]} 5. g3 {[%clk 0:02:38]}  Bd6 {[%clk 0:02:43]} 6. a3 {[%clk 0:02:34]}  Nc6 {[%clk 0:02:41]} 7. c5 {[%clk 0:02:31]}  Be7 {[%clk 0:02:39]} 8. b4 {[%clk 0:02:31]}  O-O {[%clk 0:02:37]} 9. Bg2 {[%clk 0:02:29]}  b6 {[%clk 0:02:32]} 10. b5 {[%clk 0:02:27]}  Na5 {[%clk 0:02:32]} 11. c6 {[%clk 0:02:27]}  a6 {[%clk 0:02:23]} 12. a4 {[%clk 0:02:27]}  Nc4 {[%clk 0:02:21]} 13. Bd2 {[%clk 0:02:10]}  Bd6 {[%clk 0:02:13]} 14. O-O {[%clk 0:02:05]}  axb5 {[%clk 0:02:05]} 15. axb5 {[%clk 0:02:03]}  Rxa1 {[%clk 0:02:05]} 16. Qxa1 {[%clk 0:02:03]}  e5 {[%clk 0:02:06]} 17. dxe5 {[%clk 0:02:01]}  Nxe5 {[%clk 0:02:03]} 18. Rd1 {[%clk 0:01:38]}  Qe7 {[%clk 0:01:51]} 19. Be3 {[%clk 0:01:28]}  Nxf3+ {[%clk 0:01:28]} 20. Bxf3 {[%clk 0:01:29]}  Be5 {[%clk 0:01:28]} 21. Qc1 {[%clk 0:01:27]}  Be6 {[%clk 0:01:01]} 22. Nxd5 {[%clk 0:01:24]}  Bxd5 {[%clk 0:01:02]} 23. Bxd5 {[%clk 0:01:25]}  Ng4 {[%clk 0:00:57]} 24. Bf3 {[%clk 0:01:18]}  Nxe3 {[%clk 0:00:53]} 25. Qxe3 {[%clk 0:01:19]}  Qf6 {[%clk 0:00:53]} 26. Rd7 {[%clk 0:01:16]}  Re8 {[%clk 0:00:45]} 27. Qb3 {[%clk 0:01:11]}  Re7 {[%clk 0:00:42]} 28. Qd5 {[%clk 0:01:02]}  g6 {[%clk 0:00:39]} 29. Kg2 {[%clk 0:01:00]}  Kg7 {[%clk 0:00:40]} 30. Be4 {[%clk 0:00:57]}  Bd6 {[%clk 0:00:39]} 31. Bd3 {[%clk 0:00:50]}  h5 {[%clk 0:00:35]} 32. h4 {[%clk 0:00:47]}  Qe5 {[%clk 0:00:28]} 33. Qxe5+ {[%clk 0:00:30]}  Rxe5 {[%clk 0:00:29]} 34. e4 {[%clk 0:00:30]}  Re7 {[%clk 0:00:28]} 35. Rd8 {[%clk 0:00:30]}  f6 {[%clk 0:00:22]} 36. f4 {[%clk 0:00:29]}  Bb4 {[%clk 0:00:22]} 37. Kf3 {[%clk 0:00:28]}  Be1 {[%clk 0:00:22]} 38. Bc4 {[%clk 0:00:27]}  Kh7 {[%clk 0:00:19]} 39. Rd7 {[%clk 0:00:25]}  Bb4 {[%clk 0:00:18]} 40. Rd8 {[%clk 0:00:20]}  Be1 {[%clk 0:00:18]} 41. Bd5 {[%clk 0:00:20]}  Kg7 {[%clk 0:00:18]} 42. Rg8+ {[%clk 0:00:20]}  Kh7 {[%clk 0:00:18]} 43. Ra8 {[%clk 0:00:20]}  Kg7 {[%clk 0:00:18]} 44. Ra3 {[%clk 0:00:17]}  Bb4 {[%clk 0:00:17]} 45. Ra4 {[%clk 0:00:16]}  Be1 {[%clk 0:00:17]} 46. Ra1 {[%clk 0:00:16]}  Bc3 {[%clk 0:00:17]} 47. Rc1 {[%clk 0:00:15]}  Bb4 {[%clk 0:00:16]} 48. g4 {[%clk 0:00:15]}  hxg4+ {[%clk 0:00:16]} 49. Kxg4 {[%clk 0:00:16]}  Re8 {[%clk 0:00:14]} 50. Rg1 {[%clk 0:00:15]}  Ra8 {[%clk 0:00:12]} 51. f5 {[%clk 0:00:14]}  Ra3 {[%clk 0:00:08]} 52. fxg6 {[%clk 0:00:14]}  Bc5 {[%clk 0:00:05]} 53. Rg2 {[%clk 0:00:13]}  Kxg6 {[%clk 0:00:05]} 54. Kf4+ {[%clk 0:00:12]}  Kh6 {[%clk 0:00:04]} 55. Kf5 {[%clk 0:00:12]}  Bd4 {[%clk 0:00:05]} 56. Ke6 {[%clk 0:00:12]}  Be5 {[%clk 0:00:05]} 57. Kd7 {[%clk 0:00:11]}  Ra8 {[%clk 0:00:04]} 58. Bf7 {[%clk 0:00:11]}  Rh8 {[%clk 0:00:04]} 59. h5 {[%clk 0:00:10]}  Rh7 {[%clk 0:00:02]} 60. Ke6 {[%clk 0:00:10]}  Rg7 {[%clk 0:00:03]} 61. Rd2 {[%clk 0:00:10]}  Kg5 {[%clk 0:00:03]} 62. Rd8 {[%clk 0:00:10]}  Rh7 {[%clk 0:00:04]} 63. Rg8+ {[%clk 0:00:10]}  Kf4 {[%clk 0:00:04]} 64. Bg6 {[%clk 0:00:09]}  Rh6 {[%clk 0:00:04]} 65. Kf7 {[%clk 0:00:10]}  Kg5 {[%clk 0:00:03]} 66. Rd8 {[%clk 0:00:09]}  Kf4 {[%clk 0:00:03]} 67. Kg8 {[%clk 0:00:09]}  Kg5 {[%clk 0:00:02]} 68. Rd5 {[%clk 0:00:10]}  Rxg6+ {[%clk 0:00:02]} 69. hxg6 {[%clk 0:00:10]}  Kxg6 {[%clk 0:00:03]} 70. Kf8 {[%clk 0:00:11]}  Kg5 {[%clk 0:00:04]} 71. Ke7 {[%clk 0:00:11]}  Kf4 {[%clk 0:00:04]} 72. Kd7 {[%clk 0:00:11]}  Kxe4 {[%clk 0:00:05]} 73. Rxe5+ {[%clk 0:00:11]}  Kxe5 {[%clk 0:00:05]} 74. Kxc7 {[%clk 0:00:12]}  f5 {[%clk 0:00:06]} 75. Kxb6 {[%clk 0:00:10]}  f4 {[%clk 0:00:07]} 76. c7 {[%clk 0:00:11]}  f3 {[%clk 0:00:08]} 77. c8=Q {[%clk 0:00:11]}  f2 {[%clk 0:00:09]} 78. Qc1 {[%clk 0:00:08]} 1-0


[Site "https://www.chess.com"]

[Event "Titled Tuesday Blitz November 08 Early 2022"]
[White "Hernandez Jimenez, Alexander Andres"]
[Black "Mills, Morgen"]
[WhiteFideId "3900452"]
[BlackFideId "2013304"]
[WhiteElo "2098"]
[BlackElo "2273"]
[Result "1-0"]
[Round "09"]
[TimeControl "180+1"]
[Date "2022.11.09"]
[WhiteClock "0:00:30"]
[BlackClock "0:00:01"]

1. e4 {[%clk 0:03:00]}  c6 {[%clk 0:03:00]} 2. d4 {[%clk 0:03:00]}  d5 {[%clk 0:03:01]} 3. exd5 {[%clk 0:02:59]}  cxd5 {[%clk 0:03:01]} 4. Bd3 {[%clk 0:02:59]}  Nc6 {[%clk 0:03:00]} 5. c3 {[%clk 0:02:59]}  Qc7 {[%clk 0:03:01]} 6. Ne2 {[%clk 0:02:58]}  Bg4 {[%clk 0:03:00]} 7. f3 {[%clk 0:02:57]}  Bd7 {[%clk 0:02:59]} 8. Bf4 {[%clk 0:02:57]}  e5 {[%clk 0:02:58]} 9. dxe5 {[%clk 0:02:58]}  Nxe5 {[%clk 0:02:58]} 10. Bc2 {[%clk 0:02:48]}  Nf6 {[%clk 0:02:52]} 11. O-O {[%clk 0:02:40]}  Bd6 {[%clk 0:02:49]} 12. Kh1 {[%clk 0:02:33]}  O-O {[%clk 0:02:48]} 13. Nd2 {[%clk 0:02:29]}  Rfe8 {[%clk 0:02:47]} 14. Nd4 {[%clk 0:02:29]}  Nc4 {[%clk 0:02:32]} 15. Bxd6 {[%clk 0:02:25]}  Qxd6 {[%clk 0:02:33]} 16. Nxc4 {[%clk 0:02:24]}  dxc4 {[%clk 0:02:32]} 17. Qd2 {[%clk 0:02:09]}  Rad8 {[%clk 0:02:29]} 18. Rae1 {[%clk 0:02:09]}  Bc8 {[%clk 0:02:07]} 19. Rxe8+ {[%clk 0:02:06]}  Rxe8 {[%clk 0:02:08]} 20. Re1 {[%clk 0:02:05]}  Kf8 {[%clk 0:01:52]} 21. Rxe8+ {[%clk 0:02:03]}  Nxe8 {[%clk 0:01:38]} 22. Bxh7 {[%clk 0:01:56]}  g6 {[%clk 0:01:34]} 23. Qh6+ {[%clk 0:01:54]}  Ke7 {[%clk 0:01:34]} 24. h4 {[%clk 0:01:43]}  Qe5 {[%clk 0:01:27]} 25. f4 {[%clk 0:01:25]}  Qd5 {[%clk 0:01:04]} 26. f5 {[%clk 0:01:17]}  Bxf5 {[%clk 0:00:55]} 27. Qg5+ {[%clk 0:01:03]}  f6 {[%clk 0:00:51]} 28. Nxf5+ {[%clk 0:01:02]}  gxf5 {[%clk 0:00:42]} 29. Qxf5 {[%clk 0:01:02]}  Qd1+ {[%clk 0:00:37]} 30. Kh2 {[%clk 0:01:02]}  Qd6+ {[%clk 0:00:38]} 31. Kh3 {[%clk 0:00:57]}  Ng7 {[%clk 0:00:35]} 32. Qe4+ {[%clk 0:00:53]}  Qe6+ {[%clk 0:00:25]} 33. Qxe6+ {[%clk 0:00:52]}  Nxe6 {[%clk 0:00:22]} 34. Be4 {[%clk 0:00:47]}  b5 {[%clk 0:00:12]} 35. Kg4 {[%clk 0:00:44]}  Nc5 {[%clk 0:00:10]} 36. Kf4 {[%clk 0:00:38]}  Na4 {[%clk 0:00:06]} 37. Bc6 {[%clk 0:00:35]}  Nxb2 {[%clk 0:00:05]} 38. Bxb5 {[%clk 0:00:34]}  Nd1 {[%clk 0:00:06]} 39. Bxc4 {[%clk 0:00:32]}  Nxc3 {[%clk 0:00:07]} 40. h5 {[%clk 0:00:31]}  Kf8 {[%clk 0:00:05]} 41. h6 {[%clk 0:00:31]}  Nd1 {[%clk 0:00:01]} 42. Kf5 {[%clk 0:00:30]}  Ne3+ {[%clk 0:00:01]} 43. Kg6 {[%clk 0:00:30]} 1-0


[Site "https://www.chess.com"]